Cogmind - Beta 9.6 @@@ ROGUE MODE // 2020.05.03 @ 18:09:03 Player: alice_fexa Result: Self-destructed Performance ------------- Evolutions (4) 2000 Regions Visited (13) 2600 Robots Destroyed (89) 445 Value Destroyed (1963) 1963 Prototype IDs (68) 1360 Alien Tech Used (0) 0 Bonus (600) 600 TOTAL SCORE: 8968 Bonus ------- Aligned with FarCom 300 Met Data Miner 300 Cogmind --------- Core Integrity 780/850 Matter 300/300 Energy 70/150 System Corruption 0% Temperature Cool (2) Movement Flying (32) Location -6/Factory Parts ------- > --- POWER (1) -------- Micro Nuclear Core > --- PROPULSION (2) --- Improved VTOL Module Improved Cesium-ion Thruster > --- UTILITY (10) ----- Medium Storage Unit Weight Redist. System Experimental Sensor Array Advanced Signal Interpreter Experimental Utility Shielding Hacking Suite Hacking Suite System Mapper Improved System Shield > --- WEAPON (2) ------- Datajack Power Sword > --- INVENTORY (8) ---- Micro Nuclear Core Improved Cesium-ion Thruster Matter Compressor (250) Gravity Neutralizing Apparatus Experimental Sensor Array Dynamic Insulation System System Backup Module Mini Grenade Launcher Peak State ------------ > --- POWER ------------ Micro Nuclear Core > --- PROPULSION ------- Improved VTOL Module Improved Cesium-ion Thruster > --- UTILITY ---------- Medium Storage Unit Weight Redist. System Experimental Sensor Array Advanced Signal Interpreter Experimental Utility Shielding Hacking Suite Hacking Suite System Mapper Improved System Shield Ghost Barrier > --- WEAPON ----------- Shock Maul Power Sword > --- INVENTORY -------- Micro Nuclear Core Improved Cesium-ion Thruster Matter Compressor Advanced Weight Redist. System Experimental Sensor Array Dynamic Insulation System System Backup Module Mini Grenade Launcher [Rating: 74] Favorites ----------- Power Micro Nuclear Core Engine Ion Engine Power Core Micro Nuclear Core Propulsion Improved VTOL Module Treads Light Treads Wheel Wheel Flight Unit Improved VTOL Module Utility Hacking Suite Device Weight Redist. System Storage High-capacity Storage Unit Processor Advanced Signal Interpreter Hackware Hacking Suite Protection Light Armor Plating Weapon Scythe Energy Gun EM Pulse Gun Energy Cannon Guided Plasma Cannon Ballistic Gun Enhanced Autogun Ballistic Cannon Improved Light Cannon Launcher Mini Grenade Launcher Impact Weapon Impact Mace Slashing Weapon Scythe Piercing Weapon Spear Special Melee Weapon Datajack Build | -11 -10 -10 -10 -9 -8 -7 -7 -7 -7 -7 -7 -6 -6 ------- Run | Scr Mat Min Exi Min Mat Fac Was Fac Low Low Dat Pro Fac Slots Evolved 8 | . . . . . 4 2 . . . . . . 2 Power . | . . . . . . . . . . . . . . Propulsion . | . . . . . . . . . . . . . . Utility 8 | . . . . . 4 2 . . . . . . 2 Weapon . | . . . . . . . . . . . . . . Parts Attached 129 | 6 13 3 3 4 28 27 2 9 3 . 5 2 24 Power 16 | 1 2 2 . 2 5 . . 2 . . . . 2 Engine 9 | 1 2 2 . 2 2 . . . . . . . . Core 7 | . . . . . 3 . . 2 . . . . 2 Reactor . | . . . . . . . . . . . . . . Propulsion 24 | 2 3 1 1 . 4 4 1 1 1 . . . 6 Treads 5 | 1 2 . 1 . 1 . . . . . . . . Leg . | . . . . . . . . . . . . . . Wheel 5 | 1 1 1 . . 2 . . . . . . . . Hover . | . . . . . . . . . . . . . . Flight 14 | . . . . . 1 4 1 1 1 . . . 6 Utility 52 | 1 5 . . . 7 17 1 5 1 . 3 1 11 Device 23 | . 1 . . . 4 5 1 4 . . 2 1 5 Storage 7 | 1 4 . . . . 2 . . . . . . . Processor 3 | . . . . . . 1 . . . . . . 2 Hackware 12 | . . . . . 1 7 . 1 . . . . 3 Protection 7 | . . . . . 2 2 . . 1 . 1 . 1 Artifact . | . . . . . . . . . . . . . . Weapon 37 | 2 3 . 2 2 12 6 . 1 1 . 2 1 5 Energy Gun 5 | . 1 . . 1 3 . . . . . . . . Energy Cannon 3 | . . . . . 3 . . . . . . . . Ballistic Gun 4 | 2 . . . . 2 . . . . . . . . Ballistic Cannon 5 | . 2 . 1 1 1 . . . . . . . . Launcher 3 | . . . . . 1 . . . 1 . . 1 . Special Weapon . | . . . . . . . . . . . . . . Impact Weapon 2 | . . . . . . 1 . . . . . . 1 Slashing Weapon 7 | . . . . . 2 3 . 1 . . . . 1 Piercing Weapon 1 | . . . . . . . . . . . 1 . . Special Melee Weapon 7 | . . . 1 . . 2 . . . . 1 . 3 Unidentified Prototypes 6 | . . . . . 2 1 . . . . . . 3 Parts Lost 9 | . 1 . . . 3 1 . 1 . . . . 3 Power . | . . . . . . . . . . . . . . Propulsion 3 | . 1 . . . 1 . . . . . . . 1 Utility 5 | . . . . . 2 1 . 1 . . . . 1 Weapon 1 | . . . . . . . . . . . . . 1 Highest Loss Streak 2 | . 1 . . . 1 1 . 1 . . . . 2 Average Slot Usage (%) 98 | . 99 100 100 100 98 99 100 99 99 100 100 100 96 Engine 5 | . 14 14 14 14 7 . . . . . . . . Core 3 | . . . . . 1 7 7 7 7 7 7 7 5 Treads 6 | . 14 14 14 14 9 . . . . . . . . Wheel 5 | . 13 14 14 14 8 . . . . . . . . Flight 6 | . . . . . . 15 15 15 14 15 15 15 12 Device 12 | . . . . . 18 17 17 21 9 7 13 7 12 Storage 15 | . 27 28 28 28 18 7 7 7 7 7 7 7 6 Processor 3 | . . . . . . 6 7 7 7 7 7 7 6 Hackware 15 | . . . . . 5 26 27 23 30 30 30 30 35 Protection 3 | . . . . . 10 . . . 5 7 1 7 3 Energy Gun 3 | . 4 14 14 14 3 . . . . . . . . Energy Cannon 1 | . . . . . 4 . . . . . . . . Ballistic Gun 2 | . 9 . . . 4 . . . . . . . . Ballistic Cannon 3 | . 13 14 . 14 1 . . . . . . . . Slashing Weapon 4 | . . . . . 3 6 7 6 7 7 7 7 6 Special Melee Weapon 3 | . . . 14 . . 6 7 7 . . 6 . 2 Naked Turns . | . . . . . . . . . . . . . . Heaviest Build 88 | 12 75 75 73 77 88 18 18 19 20 20 21 20 20 Greatest Support 26 | 20 20 10 20 10 26 20 20 23 20 20 23 20 20 Greatest Overweight (x) 8 | . 7 7 7 7 8 . . . . . . . 1 Average Overweight (x) 1 | . 3 7 4 7 4 . . . . . . . . Largest Inventory Capacity 20 | 6 20 20 20 20 20 20 8 8 8 8 8 8 8 Average Capacity 13 | 5 16 20 20 20 20 7 8 8 8 8 8 8 8 Most Carried 20 | 4 18 20 20 20 20 20 8 8 8 8 8 8 8 Average Carried 13 | 2 15 19 19 19 19 6 7 7 7 7 7 8 7 Final Capacity 20 | 6 20 20 20 20 20 8 8 8 8 8 8 8 8 Final Carried 20 | 4 18 20 20 20 20 8 7 8 6 8 8 8 8 Class Distribution -------------------- 42% | Hauler-Mutant 34% | Hacker-Sprinter 11% | Wizard-Sprinter 10% | Mutant Dominant Class ---------------- Mutant | -10/Materials Hauler-Mutant | -10/Mines Hauler-Mutant | -10/Exiles Hauler-Mutant | -9/Mines Hauler-Mutant | -8/Materials Hacker-Sprinter | -7/Factory Hacker-Sprinter | -7/Waste Hacker-Sprinter | -7/Factory Hacker-Sprinter | -7/Lower Caves Hacker-Sprinter | -7/Lower Caves Hacker-Sprinter | -7/Data Miner Hacker-Sprinter | -6/Proximity Caves Wizard-Sprinter | -6/Factory Resources | -11 -10 -10 -10 -9 -8 -7 -7 -7 -7 -7 -7 -6 -6 ----------- Run | Scr Mat Min Exi Min Mat Fac Was Fac Low Low Dat Pro Fac Matter Collected 2536 | 252 397 180 . 81 495 263 . 158 24 66 . 120 500 Remotely 10 | . . . . . . . . 10 . . . . . Salvage Created 3072 | . 384 201 . . 1223 290 . 384 28 . 26 . 536 Parts 190 | . 29 18 . . 73 21 . 23 4 . 3 . 19 Haulers Intercepted 16 | . 2 . . . 5 2 . 3 . . . . 4 Recyclers Shooed . | . . . . . . . . . . . . . . Parts Field Recycled . | . . . . . . . . . . . . . . Retrieved Matter . | . . . . . . . . . . . . . . Parts Self-Destructed 4 | . . . . . . . . . 2 2 . . . Prevented . | . . . . . . . . . . . . . . Kills | -11 -10 -10 -10 -9 -8 -7 -7 -7 -7 -7 -7 -6 -6 ------- Run | Scr Mat Min Exi Min Mat Fac Was Fac Low Low Dat Pro Fac Combat Hostiles Destroyed 42 | . 9 8 . . 19 1 . . 4 . . . 1 Melee 2 | . . . . . . 1 . . . . . . 1 Guns 17 | . 4 5 . . 8 . . . . . . . . Cannons 13 | . 5 1 . . 7 . . . . . . . . AOE 10 | . . 2 . . 4 . . . 4 . . . . Classes Destroyed 13 | . 6 1 . . 4 2 . . . . . . . Worker 4 | . 1 . . . 1 . . 1 . . . . 1 Tunneler 2 | . . 2 . . . . . . . . . . . Hauler 16 | . 2 . . . 5 2 . 3 . . . . 4 Recycler 3 | . . . . . . 1 . 2 . . . . . Operator 10 | . 1 . . . 3 2 . 2 . . . . 2 Watcher 11 | . 2 . . . 4 1 . 2 . . . . 2 Swarmer 17 | . 3 6 . . 4 . . . 4 . . . . Grunt 14 | . 6 2 . . 6 . . . . . . . . Brawler 1 | . . . . . 1 . . . . . . . . Duelist 1 | . . . . . 1 . . . . . . . . Sentry 6 | . . . . . 6 . . . . . . . . Hunter 1 | . . . . . 1 . . . . . . . . Programmer 2 | . . . . . . 1 . . . . . . 1 Best Kill Streak 6 | . 4 4 . . 6 1 . 2 4 . 1 . 1 Combat Bots Only 6 | . 4 4 . . 6 1 . . 4 . . . 1 Max Kills in Single Turn 2 | . 1 2 . . 2 1 . 1 2 . 1 . 1 Gunslinging . | . . . . . . . . . . . . . . Exploded 2 | . . 1 . . 2 . . . 2 . . . . Melee 1 | . . . . . . 1 . . . . . . 1 Uniques/NPCs Destroyed 1 | . . . . . . . . . . . 1 . . Data Miner (-7/Data Miner) Combat | -11 -10 -10 -10 -9 -8 -7 -7 -7 -7 -7 -7 -6 -6 -------- Run | Scr Mat Min Exi Min Mat Fac Was Fac Low Low Dat Pro Fac Damage Taken 2057 | . 402 411 . 26 673 148 . 18 79 5 . 65 230 Core 536 | . 107 77 . . 174 35 . . 49 5 . 19 70 Absorbed by Shields . | . . . . . . . . . . . . . . Core Remaining (%) 69 | 100 . . . 26 68 . . . . . . 84 . Volleys Fired 186 | . 48 24 . 2 106 . . . 6 . . . . Largest 2 | . 2 2 . 2 2 . . . 1 . . . . Hottest 120 | . 79 79 . 79 120 . . . 30 . . . . Shots Fired 307 | . 96 48 . 4 153 . . . 6 . . . . Gun 160 | . 48 24 . 2 86 . . . . . . . . Cannon 136 | . 48 24 . 2 62 . . . . . . . . Launcher 11 | . . . . . 5 . . . 6 . . . . Special . | . . . . . . . . . . . . . . Kinetic 167 | . 91 24 . 2 50 . . . . . . . . Thermal 65 | . . . . . 65 . . . . . . . . Explosive 11 | . . . . . 5 . . . 6 . . . . Electromagnetic 64 | . 5 24 . 2 33 . . . . . . . . Robot Hit Streak 21 | . 10 7 . 1 21 . . . 10 . . . . Robot Miss Streak 4 | . 3 4 . 3 3 . . . . . . . . Penetration Max . | . . . . . . . . . . . . . . Secondary Targets 1 | . . . . . 1 . . . . . . . . Max Gunslinging Chain 1 | . . . . . 1 . . . . . . . . Shots Hit Robots 266 | . 56 24 5 1 86 29 . 28 2 . 2 . 33 Core Hits 111 | . 22 11 . 1 43 7 . 10 7 . 1 . 9 Critical Hits 6 | . 2 . . . 1 2 . 1 . . . . . Critical Kills 1 | . 1 . . . . . . . . . . . . Critical Parts Destroyed 4 | . 1 . . . . 2 . 1 . . . . . Melee Attacks 251 | . . . 7 . 21 79 . 56 3 4 12 . 69 Impact . | . . . . . . . . . . . . . . Slashing 234 | . . . . . 21 75 . 55 3 4 9 . 67 Piercing 2 | . . . . . . . . . . . 2 . . Sneak Attacks 43 | . . . 5 . 3 10 . 9 . . 2 . 14 Combat Hostiles . | . . . . . . . . . . . . . . Follow-up Attacks . | . . . . . . . . . . . . . . Damage Inflicted 10279 | . 858 450 . 79 3283 1254 . 1488 394 . 76 . 2397 Guns 1715 | . 375 201 . 13 1126 . . . . . . . . Cannons 2186 | . 483 164 . . 1539 . . . . . . . . Explosions 891 | . . 85 . 66 346 . . . 394 . . . . Melee 5487 | . . . . . 272 1254 . 1488 . . 76 . 2397 Ramming . | . . . . . . . . . . . . . . Kinetic 1636 | . 843 164 . . 629 . . . . . . . . Thermal 1720 | . . 85 . 66 1569 . . . . . . . . Explosive 695 | . . . . . 301 . . . 394 . . . . Electromagnetic 741 | . 15 201 . 13 512 . . . . . . . . Impact . | . . . . . . . . . . . . . . Slashing 5411 | . . . . . 272 1254 . 1488 . . . . 2397 Piercing 76 | . . . . . . . . . . . 76 . . Highest Corruption 8 | . 1 1 1 1 . 2 8 8 2 2 2 . . Average Corruption 2 | . 1 1 1 1 . 1 8 4 2 2 1 . . Corruption Purged 10 | . . . . . . 2 . 6 . . 2 . . Effects 48 | . 3 6 1 . . 3 1 26 . 4 4 . . Message Errors 15 | . 2 5 1 . . . . 6 . . 1 . . Matter Fused 6 | . . . . . . . . 6 . . . . . Heat Flow Errors 7 | . . . . . . . . 5 . 1 1 . . Energy Discharges 6 | . . 1 . . . . . 3 . 2 . . . Data Loss (minor) 7 | . 1 . . . . . 1 2 . 1 2 . . Targeting Errors 7 | . . . . . . 3 . 4 . . . . . Overload Shots . | . . . . . . . . . . . . . . Overflow Damage 1552 | . . . . . 250 192 . 234 19 . . . 857 Projectiles 162 | . . . . . 162 . . . . . . . . Explosions 64 | . . . . . 45 . . . 19 . . . . Melee 1326 | . . . . . 43 192 . 234 . . . . 857 Knockbacks 11 | . 7 3 . . 1 . . . . . . . . Impact . | . . . . . . . . . . . . . . Kinetic 11 | . 7 3 . . 1 . . . . . . . . Secondary . | . . . . . . . . . . . . . . Self-Inflicted Damage 88 | . . 14 . 26 24 . . . 24 . . . . Shots 4 | . . 1 . 1 1 . . . 1 . . . . Rammed . | . . . . . . . . . . . . . . Targets Rammed . | . . . . . . . . . . . . . . Kicked . | . . . . . . . . . . . . . . Crushed . | . . . . . . . . . . . . . . Highest Temperature 279 | . 47 279 . 48 192 . . 246 . 93 195 2 . Average Temperature 59 | . 18 93 . 29 51 . . 99 . 49 99 2 . Received Heat Transfer 582 | . 186 132 . . 207 21 . 9 . . . 18 9 Siege Activations . | . . . . . . . . . . . . . . Robots Corrupted 1 | . . . . . 1 . . . . . . . . Combat Hostiles . | . . . . . . . . . . . . . . Parts Fried 3 | . 1 . . . 2 . . . . . . . . Impact Corruptions . | . . . . . . . . . . . . . . Robots Melted . | . . . . . . . . . . . . . . Combat Hostiles . | . . . . . . . . . . . . . . Parts Melted 4 | . . . . . 4 . . . . . . . . Heat Transferred 3630 | . . 100 . 150 3380 . . . . . . . . Parts Sabotaged . | . . . . . . . . . . . . . . Parts Stolen 2 | . . . . . . . . . 2 . . . . Parts Stripped . | . . . . . . . . . . . . . . Power Chain Reactions 4 | . . 2 . 1 1 . . . . . . . . Missiles Intercepted . | . . . . . . . . . . . . . . Alert | -11 -10 -10 -10 -9 -8 -7 -7 -7 -7 -7 -7 -6 -6 ------- Run | Scr Mat Min Exi Min Mat Fac Was Fac Low Low Dat Pro Fac Peak Influence 508 | . 205 150 . . 273 475 65 508 . . . . 408 Average Influence 90 | . 71 46 . . 58 95 56 177 . . . . 151 Maximum Alert Level 2 | . 1 . . . 1 2 . 2 . . . . 2 Low Security (%) 86 | 100 99 100 . 100 90 94 100 63 . . . . 59 Level 1 10 | . . . . . 9 . . 25 . . . . 33 Level 2 3 | . . . . . . 5 . 10 . . . . 7 Level 3 . | . . . . . . . . . . . . . . Level 4 . | . . . . . . . . . . . . . . Level 5 . | . . . . . . . . . . . . . . High Security . | . . . . . . . . . . . . . . Max Security . | . . . . . . . . . . . . . . Squads Dispatched 18 | . 2 . . 1 4 5 . 4 . . . . 2 Investigation 8 | . 1 . . 1 2 2 . 1 . . . . 1 Extermination 3 | . . . . . . 2 . 1 . . . . . Reinforcement 7 | . 1 . . . 2 1 . 2 . . . . 1 Assault . | . . . . . . . . . . . . . . Garrison . | . . . . . . . . . . . . . . Intercept . | . . . . . . . . . . . . . . Construction Impeded . | . . . . . . . . . . . . . . Haulers Reinforced 2 | . . . . . . 1 . . . . . . 1 Stealth | -11 -10 -10 -10 -9 -8 -7 -7 -7 -7 -7 -7 -6 -6 --------- Run | Scr Mat Min Exi Min Mat Fac Was Fac Low Low Dat Pro Fac Distress Signals 1 | . . . . . . . . . . . . . 1 Communications Jammed . | . . . . . . . . . . . . . . Distress Signals . | . . . . . . . . . . . . . . Times Spotted 126 | . 19 12 . 2 22 20 4 19 6 1 4 6 11 Peak Tracking Total 7 | . 3 6 . 2 6 5 5 5 4 1 4 7 2 Tactical Retreats 18 | . 2 3 . . 1 6 . 5 . . . . 1 Traps | -11 -10 -10 -10 -9 -8 -7 -7 -7 -7 -7 -7 -6 -6 ------- Run | Scr Mat Min Exi Min Mat Fac Was Fac Low Low Dat Pro Fac Traps Triggered 10 | . 2 . . . 1 3 . . . . . . 4 Indirectly . | . . . . . . . . . . . . . . Trap Hack Attempts 3 | . . . . . . . . . . . . . 3 Triggered . | . . . . . . . . . . . . . . Disarmed . | . . . . . . . . . . . . . . Reprogrammed 4 | . . . . . . . . . . . . . 4 Reused . | . . . . . . . . . . . . . . Traps Extracted . | . . . . . . . . . . . . . . Installed . | . . . . . . . . . . . . . . Triggered . | . . . . . . . . . . . . . . Machines | -11 -10 -10 -10 -9 -8 -7 -7 -7 -7 -7 -7 -6 -6 ---------- Run | Scr Mat Min Exi Min Mat Fac Was Fac Low Low Dat Pro Fac Machines Disabled 6 | . 1 . . . 1 2 . 1 . . 1 . . Max in Single Turn 1 | . 1 . . . 1 1 . 1 . . 1 . . Garrison Access 7 | . . . . . 1 1 . 2 . . . . 3 Machines Sabotaged . | . . . . . . . . . . . . . . Garrisons Compromised . | . . . . . . . . . . . . . . Overloaded Fab Kills . | . . . . . . . . . . . . . . Fab Network Shutdowns 3 | . . . . . . 1 . 1 . . . . 1 Hacking | -11 -10 -10 -10 -9 -8 -7 -7 -7 -7 -7 -7 -6 -6 --------- Run | Scr Mat Min Exi Min Mat Fac Was Fac Low Low Dat Pro Fac Machines Accessed 92 | . 9 2 2 2 14 19 . 16 . 1 2 . 25 Terminals 56 | . 6 2 . 1 10 11 . 12 . . . . 14 Fabricators 6 | . . . . . . 3 . 1 . . . . 2 Repair Stations 6 | . 1 . . . 1 1 . 1 . . . . 2 Recycling Units 10 | . 2 . . . 1 3 . . . . . . 4 Scanalyzers 1 | . . . . . 1 . . . . . . . . Garrison Access 7 | . . . . . 1 1 . 2 . . . . 3 Total Hacks 271 | . 23 4 2 4 40 52 . 45 . 1 9 . 91 Successful 184 | . 14 3 2 2 19 40 . 23 . 1 9 . 71 Failed 85 | . 9 1 . 2 20 12 . 22 . . . . 19 Catastrophic 9 | . 1 . . 1 2 1 . 2 . . . . 2 Database Lockouts 2 | . . . . . 1 . . . . . . . 1 Manual 137 | . 12 3 1 2 26 20 . 23 . . . . 50 Terminals 178 | . 17 4 . 3 30 31 . 32 . . . . 61 Fabricators 33 | . . . . . . 13 . 6 . . . . 14 Repair Stations 17 | . 2 . . . 2 3 . 2 . . . . 8 Recycling Units 13 | . 4 . . . 1 3 . . . . . . 5 Scanalyzers 5 | . . . . . 5 . . . . . . . . Garrison Access 12 | . . . . . 2 2 . 5 . . . . 3 Terminal Hacks 98 | . 7 3 2 2 8 19 . 13 . 1 9 . 34 Record 7 | . . . 1 . . . . . . . 6 . . Part Schematic 9 | . . . . . 1 3 . 1 . . . . 4 Robot Analysis 2 | . . . . . . 1 . . . . . . 1 Prototype ID Bank 12 | . 3 2 . . . . . 1 . . 3 . 3 Open Door 2 | . . . . 1 . . . . . 1 . . . Level Access Points 1 | . . . . . . . . . . . . . 1 Branch Access Points 1 | . . . . . . . . 1 . . . . . Machine Index 2 | . . . . . . . . . . . . . 2 Terminal Index 3 | . . . . . 1 1 . 1 . . . . . Repair Station Index 1 | . . . . . . . . 1 . . . . . Alert Level 8 | . . 1 . . 1 1 . 1 . . . . 4 Unreport Threat 10 | . . . . . 2 3 . 3 . . . . 2 Locate Traps 22 | . 3 . . . 2 6 . 1 . . . . 10 Reprogram Traps 1 | . . . . . . . . . . . . . 1 Recall Investigation 2 | . 1 . . . . . . . . . . . 1 Recall Extermination 1 | . . . . . . . . 1 . . . . . Recall Reinforcements 3 | . . . . . 1 1 . 1 . . . . . Hauler Manifests 2 | . . . . . . 1 . . . . . . 1 Registered Components 1 | . . . . . . 1 . . . . . . . Registered Prototypes 2 | . . . . . . . . 1 . . . . 1 Zone Layout 5 | . . . . 1 . 1 . . . . . . 3 EX-Prototype ID Bank 1 | . . . 1 . . . . . . . . . . Fabricator Hacks 18 | . . . . . . 8 . 2 . . . . 8 Network Status 1 | . . . . . . . . . . . . . 1 Load Schematic 6 | . . . . . . 2 . 1 . . . . 3 Build 11 | . . . . . . 6 . 1 . . . . 4 Repair Station Hacks 16 | . 2 . . . 2 2 . 2 . . . . 8 Scan Component 8 | . 1 . . . 1 1 . 1 . . . . 4 Repair 8 | . 1 . . . 1 1 . 1 . . . . 4 Recycling Unit Hacks 12 | . 3 . . . 1 3 . . . . . . 5 Report Inventory 10 | . 2 . . . 1 3 . . . . . . 4 Retrieve Components 2 | . 1 . . . . . . . . . . . 1 Scanalyzer 4 | . . . . . 4 . . . . . . . . Insert Component 2 | . . . . . 2 . . . . . . . . Analyze 2 | . . . . . 2 . . . . . . . . Garrison Access Hacks 7 | . . . . . 1 1 . 2 . . . . 3 Seal Access 7 | . . . . . 1 1 . 2 . . . . 3 Unauthorized Hacks 29 | . 2 . . . 3 7 . 4 . . . . 13 Terminals 18 | . 2 . . . 3 3 . 3 . . . . 7 Track 3 | . 1 . . . . . . 2 . . . . . Botnet 15 | . 1 . . . 3 3 . 1 . . . . 7 Fabricators 11 | . . . . . . 4 . 1 . . . . 6 Report 1 | . . . . . . . . . . . . . 1 Prioritize 3 | . . . . . . 1 . . . . . . 2 Siphon 5 | . . . . . . 2 . 1 . . . . 2 Haulers 2 | . . . . . . 1 . . . . . . 1 Repair Stations . | . . . . . . . . . . . . . . Recycling Units . | . . . . . . . . . . . . . . Scanalyzers . | . . . . . . . . . . . . . . Garrison Access . | . . . . . . . . . . . . . . Data Cores Recovered 3 | . . . . . 1 . . . . . . . 2 Used 1 | . . . . . 1 . . . . . . . . Hacking Detections 65 | . 6 2 . 1 11 14 . 16 . . . . 15 Full Trace Events 3 | . . . . . . 2 . 1 . . . . . Feedback Events . | . . . . . . . . . . . . . . Feedback Blocked . | . . . . . . . . . . . . . . Robot Schematics Acquired . | . . . . . . . . . . . . . . Robots Built . | . . . . . . . . . . . . . . Matter . | . . . . . . . . . . . . . . Time . | . . . . . . . . . . . . . . Total Robot Build Rating . | . . . . . . . . . . . . . . Part Schematics Acquired 11 | . . . . . 3 3 . 1 . . . . 4 Parts Built 12 | . . . . . . 6 . 2 . . . . 4 Matter 1768 | . . . . . . 814 . 126 . . . . 828 Time 714 | . . . . . . 449 . 42 . . . . 223 Total Part Build Rating 47 | . . . . . . 20 . 8 . . . . 19 Parts Repaired 8 | . 1 . . . 1 1 . 1 . . . . 4 Time 226 | . 26 . . . 32 16 . 38 . . . . 114 Parts Recycled . | . . . . . . . . . . . . . . Recycled Matter . | . . . . . . . . . . . . . . Retrieved Matter . | . . . . . . . . . . . . . . Retrieved Components 6 | . 3 . . . . . . . . . . . 3 Parts Scanalyzed 2 | . . . . . 2 . . . . . . . . Part Schematics Acquired 2 | . . . . . 2 . . . . . . . . Parts Damaged . | . . . . . . . . . . . . . . Bothacking | -11 -10 -10 -10 -9 -8 -7 -7 -7 -7 -7 -7 -6 -6 ------------ Run | Scr Mat Min Exi Min Mat Fac Was Fac Low Low Dat Pro Fac Used RIF Installer . | . . . . . . . . . . . . . . Robots Hacked 11 | . . . 5 . . 3 . . . . 1 . 2 Non-combat 8 | . . . 3 . . 3 . . . . . . 2 Combat 3 | . . . 2 . . . . . . . 1 . . Robot Hacks Applied 11 | . . . 5 . . 3 . . . . 1 . 2 parse_system 6 | . . . 5 . . . . . . . 1 . . find_chute 3 | . . . . . . 2 . . . . . . 1 find_fabricator 1 | . . . . . . 1 . . . . . . . find_recycling 1 | . . . . . . . . . . . . . 1 Relay Couplers Released . | . . . . . . . . . . . . . . Robots Rewired . | . . . . . . . . . . . . . . Allies Hacked . | . . . . . . . . . . . . . . Hacks Repelled . | . . . . . . . . . . . . . . Allies | -11 -10 -10 -10 -9 -8 -7 -7 -7 -7 -7 -7 -6 -6 -------- Run | Scr Mat Min Exi Min Mat Fac Was Fac Low Low Dat Pro Fac Total Allies 1 | . . . . . . . 1 . . . . . . Largest Group 1 | . . . . . . . 1 . . . . . . Highest-Rated Group 31 | . . . . . . . 31 . . . . . . Highest-Rated Ally 31 | . . . . . . . 31 . . . . . . Total Orders . | . . . . . . . . . . . . . . Ally Attacks 6 | . . . . . . . 6 . . . . . . Total Damage 85 | . . . . . . . 85 . . . . . . Kills . | . . . . . . . . . . . . . . Allies Corrupted . | . . . . . . . . . . . . . . Allies Melted . | . . . . . . . . . . . . . . Turrets Deployed 1 | . . . 1 . . . . . . . . . . Intel | -11 -10 -10 -10 -9 -8 -7 -7 -7 -7 -7 -7 -6 -6 ------- Run | Scr Mat Min Exi Min Mat Fac Was Fac Low Low Dat Pro Fac Robot Analysis Total 2 | . . . . . . 1 . . . . . . 1 Derelict Logs Recovered 4 | . . 1 . . . . . . 1 1 . 1 . Drone Launches . | . . . . . . . . . . . . . . Drone Recoveries . | . . . . . . . . . . . . . . Exploration | -11 -10 -10 -10 -9 -8 -7 -7 -7 -7 -7 -7 -6 -6 ------------- Run | Scr Mat Min Exi Min Mat Fac Was Fac Low Low Dat Pro Fac Turns Passed 11404 | 48 1366 684 477 263 3287 1709 29 1179 160 191 592 102 1317 Spaces Moved 10496 | 35 774 401 262 139 1816 1821 77 1991 424 458 134 286 1878 Core 1 | 1 . . . . . . . . . . . . . Treads 123 | 1 7 . 112 . 3 . . . . . . . . Legs . | . . . . . . . . . . . . . . Wheels 3303 | 33 767 401 150 139 1813 . . . . . . . . Hover . | . . . . . . . . . . . . . . Flight 7069 | . . . . . . 1821 77 1991 424 458 134 286 1878 Fastest Speed 32 | 50 100 150 140 150 120 32 32 32 32 32 32 32 32 Average Speed 66 | 100 127 150 174 150 131 32 32 32 32 32 32 32 32 Slowest Speed 230 | 160 200 150 220 150 230 32 32 32 32 32 32 32 100 Overloaded Moves . | . . . . . . . . . . . . . . Propulsion Burnouts . | . . . . . . . . . . . . . . Robots Hopped 10 | . . . . . . 2 . 6 . . 1 . 1 Cave-ins Triggered . | . . . . . . . . . . . . . . Exploration Rate (%) 59 | 2 98 63 64 36 91 43 74 49 66 69 77 51 54 Regions Visited 13 Branch Regions 7 Pre-discovered Areas 3 | . . 1 1 . . . . . . . 1 . . Known Exits Taken 4 | . . . . . . . . 1 1 1 . 1 . Unknown Exits Taken 7 | 1 1 1 1 1 1 . . . . . 1 . . Scrap Searched 12 | . . 2 . 1 . . . . 2 4 . 3 . Spaces Dug 124 | . . . . . 26 34 . 25 . 4 6 . 29 Terrain Destroyed 227 | . 5 15 . 1 76 34 . 25 32 4 6 . 29 Melee 115 | . . . . . 17 34 . 25 . 4 6 . 29 Projectile 21 | . 5 3 . . 13 . . . . . . . . AOE 91 | . . 12 . 1 46 . . . 32 . . . . Actions | -11 -10 -10 -10 -9 -8 -7 -7 -7 -7 -7 -7 -6 -6 --------- Run | Scr Mat Min Exi Min Mat Fac Was Fac Low Low Dat Pro Fac Total 14309 | 44 1061 438 275 192 2558 2833 80 2446 436 498 665 296 2487 Wait 3047 | . 189 4 . 41 537 876 1 377 1 31 511 3 476 Move 10467 | 34 773 400 261 138 1815 1818 76 1979 423 457 132 285 1876 Hop 7 | . . . . . . 1 . 5 . . . . 1 Pick Up 91 | 4 23 3 2 2 23 9 . 8 . 4 3 3 7 Fast Attach 46 | 6 4 . . . 6 10 . 5 . . . . 15 Attach 25 | . . . . . 5 13 1 1 1 . 1 . 3 Detach 2 | . . . . . . . . . . . . . 2 Swap 59 | . 9 3 3 4 17 4 1 3 2 . 4 2 7 Drop 108 | . 15 4 2 5 28 23 1 12 . 2 3 3 10 Fire 186 | . 48 24 . 2 106 . . . 6 . . . . Melee 250 | . . . 7 . 21 79 . 56 3 4 11 . 69 Ram . | . . . . . . . . . . . . . . Kick . | . . . . . . . . . . . . . . Crush . | . . . . . . . . . . . . . . Escape Stasis 18 | . . . . . . . . . . . . . 18 Rewire . | . . . . . . . . . . . . . . Trap 3 | . . . . . . . . . . . . . 3 Miscellaneous . | . . . . . . . . . . . . . . Route ------- -11/Scrapyard -10/Materials (discovered 5 exits: [*Mat x3] / *Min x2) -10/Mines (discovered 2 exits: [*Mat] / *Exi) -10/Exiles -9/Mines -8/Materials (discovered 3 exits: *Fac x3) -7/Factory -7/Waste -7/Factory (discovered 3 exits: *Fac / *Low x2) -7/Lower Caves -7/Lower Caves -7/Data Miner -6/Proximity Caves -6/Factory (discovered 4 exits: *Fac x4) History --------- Turn | Location | Event 25 | -11/Scrapyard | Discovered new exit (range 16) 49 | -11/Scrapyard | Entered Materials 236 | -10/Materials | Discovered new exit (range 10) 282 | -10/Materials | Repaired Lgt. Treads 311 | -10/Materials | Build established: Mutant 605 | -10/Materials | Discovered new exit (range 12) 820 | -10/Materials | Discovered new exit (range 9) 907 | -10/Materials | Discovered new exit (range 7) 1268 | -10/Materials | Discovered new exit (range 15) 1415 | -10/Materials | Entered Mines 1503 | -10/Mines | Learned location of Zion (-6) 1557 | -10/Mines | Build established: Hauler-Mutant 1645 | -10/Mines | Found a damaged Exp. Sensor Array with a note attached 1666 | -10/Mines | Found Prototype Device 1765 | -10/Mines | Core integrity fell below 50% 1983 | -10/Mines | Discovered new exit (range 6) 2093 | -10/Mines | Deemed a non-threat by the Exiles lab entrance 2093 | -10/Mines | Discovered new exit (range 5) 2099 | -10/Mines | Entered Exiles 2136 | -10/Exiles | Met 8R-AWN 2165 | -10/Exiles | Met EX-HEX 2224 | -10/Exiles | Met EX-DEC 2239 | -10/Exiles | Met EX-BIN 2264 | -10/Exiles | Aligned with FarCom system 2265 | -10/Exiles | Given EX-Vault access code 2297 | -10/Exiles | Opened EX-Vault 2305 | -10/Exiles | DAS Turret deployed 2317 | -10/Exiles | Found Gui. Plasma Cannon 2325 | -10/Exiles | Found Deploy-a-Sentry 2379 | -10/Exiles | Warned to stay clear of 0b10 Research branches 2557 | -10/Exiles | Discovered new exit (range 10) 2576 | -10/Exiles | Stole two prototypes: Gui. Plasma Cannon, Deploy-a-Sentry 2576 | -10/Exiles | Entered Mines 2716 | -9/Mines | Discovered new exit (range 8) 2731 | -9/Mines | Met a Derelict shopkeep closing up shop 2839 | -9/Mines | Entered Materials 2839 | -8/Materials | Evolved 4 slots: Utility x4 3973 | -8/Materials | Identified Exp. Sensor Array 4278 | -8/Materials | Discovered new exit (range 16) 4887 | -8/Materials | Discovered new exit (range 16) 5022 | -8/Materials | Central database locked down 5906 | -8/Materials | Repaired Mni. Grenade Launcher 6084 | -8/Materials | Discovered new exit (range 14) 6126 | -8/Materials | Entered Factory 6126 | -7/Factory | Evolved 2 slots: Utility x2 6128 | -7/Factory | FarCom data flow suspended 6216 | -7/Factory | Fabricated Hacking Suite (x1) 6254 | -7/Factory | Fabricated Hacking Suite (x1) 6292 | -7/Factory | Fabricated Hacking Suite (x1) 6427 | -7/Factory | Build established: Hacker-Sprinter 6618 | -7/Factory | Fabricated Hacking Suite (x1) 6779 | -7/Factory | Fabricated Imp. Cesium-ion Thruster? 6951 | -7/Factory | Fabricated Imp. Cesium-ion Thruster? 7231 | -7/Factory | Local fabrication network quarantined 7415 | -7/Factory | Repaired Weight Redist. System 7835 | -7/Factory | Manually triggered Chute Trap 7835 | -7/Factory | Sucked down chute 7835 | -7/Factory | Entered Waste 7836 | -7/Waste | Met a frightened Derelict 7838 | -7/Waste | Spotted C-40 Crusher 7838 | -7/Waste | Spotted C-40 Crusher 7845 | -7/Waste | Spotted C-40 Crusher 7847 | -7/Waste | Spotted C-40 Crusher 7850 | -7/Waste | EMP discharged 7858 | -7/Waste | Discovered new exit (range 11) 7860 | -7/Waste | Spotted C-40 Crusher 7863 | -7/Waste | Identified exit to Factory 7864 | -7/Waste | Entered Factory 7958 | -7/Factory | Fabricated Spear (x2) 8059 | -7/Factory | Local fabrication network quarantined 8254 | -7/Factory | Identified exit to Lower Caves 8388 | -7/Factory | Repaired Scythe 8460 | -7/Factory | Discovered new exit (range 15) 9043 | -7/Factory | Entered Lower Caves 9076 | -7/Lower Caves | Learned Factory stockpile data 9104 | -7/Lower Caves | Spotted IH-BDF(f) 9116 | -7/Lower Caves | Encountered a Master Thief 9122 | -7/Lower Caves | Spotted PV-RA2(f) 9124 | -7/Lower Caves | Encountered a Master Thief 9152 | -7/Lower Caves | Deploy-a-Sentry stolen by Master Thief 9178 | -7/Lower Caves | Imp. Cesium-ion Thruster stolen by Master Thief 9199 | -7/Lower Caves | Discovered new exit (range 9) 9203 | -7/Lower Caves | Identified exit to Lower Caves 9203 | -7/Lower Caves | Entered another Lower Caves area 9209 | -7/Lower Caves | Encountered a Warlord checkpoint 9243 | -7/Lower Caves | Attracted the attention of an 0b10 checkpoint 9281 | -7/Lower Caves | Learned Factory emergency access door positions 9366 | -7/Lower Caves | Discovered new exit (range 7) 9393 | -7/Lower Caves | Identified exit to Data Miner 9394 | -7/Lower Caves | Entered Data Miner 9394 | -7/Data Miner | Discovered new exit (range 6) 9401 | -7/Data Miner | Met Data Miner 9413 | -7/Data Miner | Learned location of Section 7 (-2) 9413 | -7/Data Miner | Acquired the access code to Warlord's prototype stash 9417 | -7/Data Miner | Received God Mode back door access code from Data Miner 9941 | -7/Data Miner | Destroyed Data Miner 9944 | -7/Data Miner | Found System Mapper 9946 | -7/Data Miner | Found Ghost Barrier 9949 | -7/Data Miner | Data Conduit disabled 9986 | -7/Data Miner | Entered Proximity Caves 10046 | -6/Proximity Caves | Learned Factory emergency access door positions 10086 | -6/Proximity Caves | Discovered new exit (range 10) 10088 | -6/Proximity Caves | Identified exit to Factory 10088 | -6/Proximity Caves | Entered Factory 10088 | -6/Factory | Evolved 2 slots: Utility x2 10149 | -6/Factory | Fabricated Exp. Sensor Array (x1) 10189 | -6/Factory | Fabricated Exp. Sensor Array (x1) 10271 | -6/Factory | Identified exit to Factory 10337 | -6/Factory | Fabricated Exp. Utility Shielding (x1) 10372 | -6/Factory | Fabricated Imp. Cesium-ion Thruster (x1) 10393 | -6/Factory | Build established: Wizard-Sprinter 10394 | -6/Factory | Local fabrication network quarantined 10435 | -6/Factory | Repaired Mic. Nuclear Core 11035 | -6/Factory | Repaired Dynamic Insulation System 11066 | -6/Factory | Repaired Imp. VTOL Module 11107 | -6/Factory | Repaired Exp. Sensor Array 11286 | -6/Factory | Central database locked down 11405 | -6/Factory | Self-destructed Last Messages --------------- 11355_ Massive razor-sharp blades shoot up from within the floor. 11355_ Imp. VTOL Module severed. 11356_ Acquired Imp. VTOL Module. 11358_ Acquired 10 matter. 11367_ Sneak attack on A-15 Conveyor. 11368_ A-15 Conveyor calls for reinforcements. 11368_ ALERT: Hostile activity reported, dispatching reinforcements to area. 11377_ Destroyed Med. Treads. 11395_ Triggered Blade Trap. 11395_ Massive razor-sharp blades shoot up from within the floor. 11395_ Imp. Cesium-ion Thruster severed. 11395_ Ghost Barrier severed. 11395_ Mic. Nuclear Core severed. 11395_ Acquired Imp. Cesium-ion Thruster. 11397_ Acquired Mic. Nuclear Core. 11401_ A-15 Conveyor destroyed. 11403_ Acquired 20 matter. 11404_ Dropped Adv. Weight Redist. System. 11404_ Acquired Gravity Neutralizing Apparatus. Map ----- +----------------------------------------------------+ | | | | | | | | | | | | | | | ??????????????????????????????????????????######## | | ??????????????????????????????????????????# """ | | ??????????????????????????????????????????# "T" | | ?###########?????########################## " " | | ?# """"" #?????# + + | | ?# ""T"" #?????# ! "" ### ######### | | ?# #?????# """#?# #???????# """ | | ?# """" ####### T"#?# #???????# """ | | ?# """" # + """" """#?# #???????# """ | | ?# """" # ### """" "" #?# #???????# | | ?# """" + #?# """" #?# #???????######## | | ?# # #?# """" #?# #?############ | | +######+#### ### """" = #?#!### """""" # | | ## """" #?#%! + """""" # | | ## """" #?# ### """""" # | | """ ## ### ### """""" # | | G" ############+## # + | | """ ** # / ! # | | ###### !@* ############ | | ?????# """ R ! ########### ? | | ?????# """ ############### ? | | ?##### """ #?????????????## Y | | ?+ #??????????????# ^ ? | | ??#### #??????????????# """ """ ###??? | | ?########## #??????????????# """ """ #????? | | ?# # ##########???### """ """ #????? | | ?# [ # ## #???# ###### | | ?#! # ##### ^ """ """ | | ?# # """ """ | | ?+ + """ """ | | ?# # % | | ?# ![ # ##### | | ?# ![ ######## #???# ####+## | | ?# [[ #??????### ################# #?????? | | ?# #????????# R# # #?????? | | ?# #????????# + k # #?????? | | ?# ! ########## # # #?????? | | ?# # # # # #?????? | | ?# = # # # # #?????? | | ?# # # # # #?????? | | ?# # # # ?+ #?????? | | ?# # # # ?# #?????? | | ?? # # # ?# #?????? | +----------------------------------------------------+ Best States ------------- Heat Dissipation 62 Energy Generation 15 Energy Capacity 265 Matter Stores 300 Matter Capacity 300 Sight Range 22 Robot Scan Range 30 Terrain Scan Range 16 Terrain Scan Density 10 Additional Mass Support 9 EM Shielding 2 Armor Coverage 300 Utility Shielding 90 Evasion (%) 63 Recoil Reduction 1 Offensive Hacking 50 Defensive Hacking 32 Item Schematics ----------------- Imp. VTOL Module | -8/Materials | Scanalyzed Exp. Sensor Array | -8/Materials | Scanalyzed Hacking Suite | -8/Materials | Hacked Imp. Cesium-ion Thruster | -7/Factory | Hacked Spear | -7/Factory | Hacked Imp. System Shield | -7/Factory | Hacked Imp. Hacking Suite | -7/Factory | Hacked Gravity Neutralizing Apparatus | -6/Factory | Hacked Exp. Utility Shielding | -6/Factory | Hacked Adv. Hacking Suite | -6/Factory | Hacked Adv. System Shield | -6/Factory | Hacked Robot Schematics ------------------ None Fabricated ------------ Hacking Suite | x1 | -7/Factory Hacking Suite | x1 | -7/Factory Hacking Suite | x1 | -7/Factory Hacking Suite | x1 | -7/Factory Imp. Cesium-ion Thruster | x1 | -7/Factory Imp. Cesium-ion Thruster | x1 | -7/Factory Spear | x2 | -7/Factory Exp. Sensor Array | x1 | -6/Factory Exp. Sensor Array | x1 | -6/Factory Exp. Utility Shielding | x1 | -6/Factory Imp. Cesium-ion Thruster | x1 | -6/Factory Alien Tech Used ----------------- None Achievements -------------- None Challenges ------------ None Game ------ Seed DiametricStorageCannon Manual? 0 Play Time 01:39:00 Cumulative 824.7 hours Start 2020.05.03 @ 16:00:03 End 2020.05.03 @ 18:09:03 Sessions 3 Manual Loads 0 Difficulty Rogue Special Mode None Game No. 695 Rogue 655 Adventurer 40 Explorer 0 Win Type - Total 81 Types 52/2/19/2/1/2/3 Lore% 93 Gallery% 96 Achievement% 78 Wizard Run 0 Options --------- ASCII 0 Keyboard 0 Movement Numpad Keybinds 0 Fullscreen 0 Font 16/Terminus Map View 76x50 Tactical HUD 1 Map Filters NONE Filters NONE Steam 1 RUN: 6cf3d0be-9f84-49e4-bea1-92c8b279d027